[Event "Late-Titled-Tuesday-Blitz-October-24-2023"]
[Site "Chess.com"]
[Date "2023.10.24"]
[Round "1"]
[White "Marcin"]
[Black "OK97"]
[Result "0-1"]
[WhiteElo "2432"]
[BlackElo "2766"]
[TimeControl "180+1"]
[EndTime "14:02:06 PDT"]
[Termination "OK97 won by resignation"]

1. e4 {[%clk 0:02:58.8]} 1... c5 {[%clk 0:03:00.2]} 2. Nc3 {[%clk 0:02:57.3]}
2... Nc6 {[%clk 0:03:00.1]} 3. f4 {[%clk 0:02:56.9]} 3... e6 {[%clk 0:02:59.9]}
4. Nf3 {[%clk 0:02:50.2]} 4... d5 {[%clk 0:02:59.4]} 5. Bb5 {[%clk 0:02:48.4]}
5... Ne7 {[%clk 0:02:59.6]} 6. O-O {[%clk 0:02:46.2]} 6... a6 {[%clk 0:02:57.3]}
7. Bxc6+ {[%clk 0:02:45.9]} 7... Nxc6 {[%clk 0:02:58.2]} 8. f5 {[%clk
0:02:41.9]} 8... dxe4 {[%clk 0:02:50.3]} 9. Nxe4 {[%clk 0:02:34.7]} 9... exf5
{[%clk 0:02:49.5]} 10. Ng3 {[%clk 0:02:32.4]} 10... Be7 {[%clk 0:02:49]} 11. d3
{[%clk 0:02:18.4]} 11... O-O {[%clk 0:02:49]} 12. Bf4 {[%clk 0:02:18.9]} 12...
Be6 {[%clk 0:02:44.9]} 13. Ne5 {[%clk 0:02:16.7]} 13... Qd4+ {[%clk 0:02:39.4]}
14. Kh1 {[%clk 0:02:15.6]} 14... Nxe5 {[%clk 0:02:39.5]} 0-1

[Event "Late-Titled-Tuesday-Blitz-October-24-2023"]
[Site "Chess.com"]
[Date "2023.10.24"]
[Round "1"]
[White "chessisveryfun1264"]
[Black "Chessbard1972"]
[Result "0-1"]
[WhiteElo "2632"]
[BlackElo "2359"]
[TimeControl "180+1"]
[EndTime "14:03:26 PDT"]
[Termination "Chessbard1972 won by resignation"]

1. e4 {[%clk 0:02:54.2]} 1... c5 {[%clk 0:02:59.3]} 2. Nf3 {[%clk 0:01:39.6]}
2... a6 {[%clk 0:02:54.4]} 3. c4 {[%clk 0:01:35.4]} 3... e6 {[%clk 0:02:52.9]}
4. Nc3 {[%clk 0:01:26.8]} 4... Qc7 {[%clk 0:02:51.4]} 5. d4 {[%clk 0:01:27]}
5... cxd4 {[%clk 0:02:51.7]} 6. Nxd4 {[%clk 0:01:27.2]} 6... Nf6 {[%clk
0:02:52.4]} 7. Be3 {[%clk 0:01:21.7]} 7... b6 {[%clk 0:02:52.4]} 8. f3 {[%clk
0:01:21.6]} 8... Bb7 {[%clk 0:02:52.6]} 9. Qd2 {[%clk 0:01:22.3]} 9... Nc6
{[%clk 0:02:52.5]} 10. Be2 {[%clk 0:01:22.9]} 10... Ne5 {[%clk 0:02:52.6]} 11.
b3 {[%clk 0:01:22.7]} 11... Ng6 {[%clk 0:02:51.2]} 12. O-O {[%clk 0:01:23]}
12... h5 {[%clk 0:02:51.1]} 13. Rac1 {[%clk 0:01:21.4]} 13... h4 {[%clk
0:02:51.1]} 14. h3 {[%clk 0:01:21.1]} 14... Bd6 {[%clk 0:02:49.4]} 15. Rfd1
{[%clk 0:01:20.8]} 15... Nh5 {[%clk 0:02:47.7]} 16. Bf1 {[%clk 0:00:58.6]} 16...
Bh2+ {[%clk 0:02:45.5]} 17. Kf2 {[%clk 0:00:57]} 17... Qg3+ {[%clk 0:02:36.4]}
18. Ke2 {[%clk 0:00:56.7]} 18... Ngf4+ {[%clk 0:02:36.2]} 19. Bxf4 {[%clk
0:00:54.3]} 19... Nxf4+ {[%clk 0:02:36.1]} 20. Ke3 {[%clk 0:00:55]} 20... Bg1+
{[%clk 0:02:35.9]} 0-1

[Event "Late-Titled-Tuesday-Blitz-October-24-2023"]
[Site "Chess.com"]
[Date "2023.10.24"]
[Round "1"]
[White "Igor_Kowalski"]
[Black "Chessdreamer2020"]
[Result "1-0"]
[WhiteElo "2875"]
[BlackElo "2493"]
[TimeControl "180+1"]
[EndTime "14:03:36 PDT"]
[Termination "Igor_Kowalski won by resignation"]

1. d4 {[%clk 0:02:58.7]} 1... d6 {[%clk 0:02:58.8]} 2. Nf3 {[%clk 0:02:58.7]}
2... g6 {[%clk 0:02:58.1]} 3. e4 {[%clk 0:02:59]} 3... Bg7 {[%clk 0:02:57.8]} 4.
Nc3 {[%clk 0:02:59.4]} 4... a6 {[%clk 0:02:57.7]} 5. Bc4 {[%clk 0:02:59.8]} 5...
b5 {[%clk 0:02:56.5]} 6. Bd5 {[%clk 0:03:00.2]} 6... c6 {[%clk 0:02:56.3]} 7.
Bb3 {[%clk 0:03:00.7]} 7... Nf6 {[%clk 0:02:53.1]} 8. Qe2 {[%clk 0:02:59.9]}
8... O-O {[%clk 0:02:52.6]} 9. e5 {[%clk 0:02:58.7]} 9... dxe5 {[%clk
0:02:41.5]} 10. dxe5 {[%clk 0:02:59.6]} 10... Nd5 {[%clk 0:02:41.8]} 11. Nxd5
{[%clk 0:02:52.1]} 11... cxd5 {[%clk 0:02:42.7]} 12. Bg5 {[%clk 0:02:52.3]}
12... f6 {[%clk 0:02:35.9]} 13. O-O-O {[%clk 0:02:44.8]} 13... Bb7 {[%clk
0:02:31.6]} 14. Bf4 {[%clk 0:02:36]} 14... e6 {[%clk 0:02:13.1]} 15. exf6 {[%clk
0:02:30.4]} 15... Qxf6 {[%clk 0:02:11.1]} 16. Be5 {[%clk 0:02:30.6]} 16... Qf5
{[%clk 0:02:08.4]} 17. Bxg7 {[%clk 0:02:29.3]} 17... Kxg7 {[%clk 0:02:09.3]} 18.
Nd4 {[%clk 0:02:28.5]} 18... Qf4+ {[%clk 0:02:01.6]} 19. Kb1 {[%clk 0:02:28.7]}
19... Bc8 {[%clk 0:01:58.2]} 20. Nxe6+ {[%clk 0:02:25.1]} 20... Bxe6 {[%clk
0:01:59.1]} 21. Qxe6 {[%clk 0:02:25.9]} 21... Ra7 {[%clk 0:01:55.5]} 22. Rxd5
{[%clk 0:02:11.8]} 22... Qxf2 {[%clk 0:01:53.6]} 23. Rhd1 {[%clk 0:02:03.5]}
23... Qxg2 {[%clk 0:01:45.4]} 24. Qe5+ {[%clk 0:02:03.4]} 24... Kh6 {[%clk
0:01:39.7]} 25. Qe3+ {[%clk 0:01:57.9]} 25... Kg7 {[%clk 0:01:38.4]} 26. Qxa7+
{[%clk 0:01:58.3]} 1-0

[Event "Late-Titled-Tuesday-Blitz-October-24-2023"]
[Site "Chess.com"]
[Date "2023.10.24"]
[Round "1"]
[White "FM_Kappeler"]
[Black "Makswolf200817"]
[Result "0-1"]
[WhiteElo "2298"]
[BlackElo "2617"]
[TimeControl "180+1"]
[EndTime "14:03:43 PDT"]
[Termination "Makswolf200817 won by checkmate"]

1. d4 {[%clk 0:02:57.5]} 1... d5 {[%clk 0:02:58.3]} 2. c4 {[%clk 0:02:57.3]}
2... e6 {[%clk 0:02:58.6]} 3. Nf3 {[%clk 0:02:56.8]} 3... Nf6 {[%clk 0:02:58.2]}
4. g3 {[%clk 0:02:56.8]} 4... Bb4+ {[%clk 0:02:57.3]} 5. Bd2 {[%clk 0:02:56.1]}
5... Be7 {[%clk 0:02:57.3]} 6. Bg2 {[%clk 0:02:56.2]} 6... O-O {[%clk
0:02:55.1]} 7. O-O {[%clk 0:02:56.2]} 7... c6 {[%clk 0:02:54.5]} 8. Na3 {[%clk
0:02:52.5]} 8... Nbd7 {[%clk 0:02:43.8]} 9. Rc1 {[%clk 0:02:51.3]} 9... a5
{[%clk 0:02:40.5]} 10. Bf4 {[%clk 0:02:30.7]} 10... Ne4 {[%clk 0:02:38.4]} 11.
Nd2 {[%clk 0:02:26.9]} 11... f5 {[%clk 0:02:36.3]} 12. Qb3 {[%clk 0:02:18]}
12... g5 {[%clk 0:02:28.3]} 13. Nxe4 {[%clk 0:02:11.1]} 13... gxf4 {[%clk
0:02:11.6]} 14. Nd2 {[%clk 0:02:09.9]} 14... Bg5 {[%clk 0:02:03.8]} 15. gxf4
{[%clk 0:01:55.4]} 15... Bxf4 {[%clk 0:02:03.5]} 16. e3 {[%clk 0:01:55.7]} 16...
Bd6 {[%clk 0:02:01.5]} 17. Kh1 {[%clk 0:01:53.3]} 17... Kh8 {[%clk 0:02:00.5]}
18. Rg1 {[%clk 0:01:52.1]} 18... Qh4 {[%clk 0:01:58.9]} 19. f4 {[%clk
0:01:48.1]} 19... Nf6 {[%clk 0:01:57.3]} 20. Nf3 {[%clk 0:01:46.4]} 20... Qh6
{[%clk 0:01:56.5]} 21. Nc2 {[%clk 0:01:28.3]} 21... Ne4 {[%clk 0:01:54]} 22.
Rcf1 {[%clk 0:01:23.3]} 22... Ng3# {[%clk 0:01:53.4]} 0-1

[Event "Late-Titled-Tuesday-Blitz-October-24-2023"]
[Site "Chess.com"]
[Date "2023.10.24"]
[Round "1"]
[White "DanielNaroditsky"]
[Black "Deeper44"]
[Result "1-0"]
[WhiteElo "3205"]
[BlackElo "2528"]
[TimeControl "180+1"]
[EndTime "14:03:54 PDT"]
[Termination "DanielNaroditsky won by resignation"]

1. e4 {[%clk 0:02:59.3]} 1... e6 {[%clk 0:02:59.8]} 2. d4 {[%clk 0:02:58.8]}
2... d5 {[%clk 0:03:00.4]} 3. Nd2 {[%clk 0:02:59]} 3... Be7 {[%clk 0:03:00.5]}
4. Ngf3 {[%clk 0:02:57.9]} 4... Nf6 {[%clk 0:03:00.3]} 5. e5 {[%clk 0:02:52.9]}
5... Nfd7 {[%clk 0:03:00.5]} 6. Bd3 {[%clk 0:02:53.8]} 6... c5 {[%clk
0:03:01.1]} 7. c3 {[%clk 0:02:54]} 7... Nc6 {[%clk 0:03:01.7]} 8. O-O {[%clk
0:02:54.6]} 8... cxd4 {[%clk 0:03:02.2]} 9. cxd4 {[%clk 0:02:55.5]} 9... g5
{[%clk 0:03:02.9]} 10. Nb3 {[%clk 0:02:47.9]} 10... a5 {[%clk 0:03:03.2]} 11. a4
{[%clk 0:02:47.8]} 11... g4 {[%clk 0:03:02.8]} 12. Ne1 {[%clk 0:02:47.5]} 12...
h5 {[%clk 0:03:03.3]} 13. f4 {[%clk 0:02:45.8]} 13... Qb6 {[%clk 0:03:02.2]} 14.
Be3 {[%clk 0:02:45.7]} 14... f5 {[%clk 0:02:35.4]} 15. exf6 {[%clk 0:02:43.4]}
15... Bxf6 {[%clk 0:02:31.7]} 16. Kh1 {[%clk 0:02:40]} 16... g3 {[%clk
0:02:08.2]} 17. hxg3 {[%clk 0:02:36]} 17... h4 {[%clk 0:02:05.1]} 18. g4 {[%clk
0:02:36.6]} 18... h3 {[%clk 0:02:04.5]} 19. g5 {[%clk 0:02:35.1]} 19... hxg2+
{[%clk 0:02:03.7]} 20. Kxg2 {[%clk 0:02:36]} 20... Bg7 {[%clk 0:01:47.4]} 21.
Nf3 {[%clk 0:02:35.5]} 21... Qb4 {[%clk 0:01:36.1]} 22. Bb5 {[%clk 0:02:26.4]}
22... Ne7 {[%clk 0:01:28.2]} 23. Rc1 {[%clk 0:02:15.4]} 23... Nf5 {[%clk
0:01:26]} 24. Bf2 {[%clk 0:02:15.8]} 24... Nd6 {[%clk 0:01:22]} 25. Be1 {[%clk
0:02:10.8]} 1-0

[Event "Late-Titled-Tuesday-Blitz-October-24-2023"]
[Site "Chess.com"]
[Date "2023.10.24"]
[Round "1"]
[White "AleksanderHnydiuk"]
[Black "Zhigalko_Sergei"]
[Result "0-1"]
[WhiteElo "2513"]
[BlackElo "2961"]
[TimeControl "180+1"]
[EndTime "14:04:01 PDT"]
[Termination "Zhigalko_Sergei won by resignation"]

1. d4 {[%clk 0:03:00.9]} 1... Nf6 {[%clk 0:02:59.8]} 2. Nf3 {[%clk 0:03:00.4]}
2... e6 {[%clk 0:02:59.9]} 3. e3 {[%clk 0:02:59.8]} 3... b6 {[%clk 0:02:58.6]}
4. Bd3 {[%clk 0:02:59.2]} 4... Bb7 {[%clk 0:02:59]} 5. O-O {[%clk 0:02:59.3]}
5... d5 {[%clk 0:02:59.6]} 6. b3 {[%clk 0:02:57.3]} 6... Bd6 {[%clk 0:02:59.9]}
7. c4 {[%clk 0:02:57.1]} 7... O-O {[%clk 0:02:59.9]} 8. Ba3 {[%clk 0:02:54]}
8... c5 {[%clk 0:02:59.9]} 9. cxd5 {[%clk 0:02:45.1]} 9... exd5 {[%clk
0:02:58.9]} 10. Nc3 {[%clk 0:02:42.8]} 10... Nbd7 {[%clk 0:02:58.9]} 11. Rc1
{[%clk 0:02:37.8]} 11... Rc8 {[%clk 0:02:56.2]} 12. Bb2 {[%clk 0:02:31.7]} 12...
Qe7 {[%clk 0:02:53.5]} 13. Re1 {[%clk 0:02:28.6]} 13... Rfe8 {[%clk 0:02:51.1]}
14. Bf5 {[%clk 0:02:28.2]} 14... Rcd8 {[%clk 0:02:50.8]} 15. Bh3 {[%clk
0:02:15.6]} 15... a6 {[%clk 0:02:43.4]} 16. g3 {[%clk 0:02:14.5]} 16... Qf8
{[%clk 0:02:24.3]} 17. Bg2 {[%clk 0:01:45.4]} 17... c4 {[%clk 0:02:18.1]} 18.
Nh4 {[%clk 0:01:32]} 18... b5 {[%clk 0:02:03.2]} 19. bxc4 {[%clk 0:01:31.4]}
19... bxc4 {[%clk 0:02:04.1]} 20. Qa4 {[%clk 0:01:22]} 20... Nb6 {[%clk
0:01:51.6]} 21. Qa5 {[%clk 0:01:21.6]} 21... Nfd7 {[%clk 0:01:51.7]} 22. Nf5
{[%clk 0:01:18]} 22... Bb4 {[%clk 0:01:50]} 0-1

[Event "Late-Titled-Tuesday-Blitz-October-24-2023"]
[Site "Chess.com"]
[Date "2023.10.24"]
[Round "1"]
[White "ellatambien"]
[Black "Hirna2005"]
[Result "1-0"]
[WhiteElo "2638"]
[BlackElo "2330"]
[TimeControl "180+1"]
[EndTime "14:04:11 PDT"]
[Termination "ellatambien won by resignation"]

1. c4 {[%clk 0:02:59.4]} 1... g6 {[%clk 0:02:59.9]} 2. d4 {[%clk 0:02:59]} 2...
Bg7 {[%clk 0:02:59.6]} 3. Nc3 {[%clk 0:02:58.5]} 3... d6 {[%clk 0:02:59.7]} 4.
e4 {[%clk 0:02:58.6]} 4... Nc6 {[%clk 0:02:59.7]} 5. d5 {[%clk 0:02:46.5]} 5...
Nd4 {[%clk 0:02:59.2]} 6. Be3 {[%clk 0:02:42.3]} 6... c5 {[%clk 0:02:59.4]} 7.
Nge2 {[%clk 0:02:38.6]} 7... Qb6 {[%clk 0:02:57.5]} 8. Qd2 {[%clk 0:02:34.5]}
8... Nxe2 {[%clk 0:02:54]} 9. Bxe2 {[%clk 0:02:33.7]} 9... Nf6 {[%clk
0:02:54.1]} 10. h3 {[%clk 0:02:26.4]} 10... Bd7 {[%clk 0:02:51.3]} 11. O-O
{[%clk 0:02:26.3]} 11... O-O {[%clk 0:02:50.2]} 12. f4 {[%clk 0:02:26.4]} 12...
Ne8 {[%clk 0:02:33.6]} 13. Bf3 {[%clk 0:02:20.3]} 13... e6 {[%clk 0:02:28.2]}
14. dxe6 {[%clk 0:02:12.6]} 14... fxe6 {[%clk 0:02:27.4]} 15. a3 {[%clk
0:02:10.5]} 15... Bc6 {[%clk 0:02:25.7]} 16. b4 {[%clk 0:02:08.7]} 16... Rd8
{[%clk 0:02:23.3]} 17. b5 {[%clk 0:02:07.7]} 17... Bd7 {[%clk 0:02:18.7]} 18.
Rac1 {[%clk 0:02:07.6]} 18... Bc8 {[%clk 0:02:17.6]} 19. Bf2 {[%clk 0:02:06.7]}
19... Qa5 {[%clk 0:02:07.4]} 20. a4 {[%clk 0:02:06]} 20... Bh6 {[%clk
0:01:49.6]} 21. Be3 {[%clk 0:02:04.6]} 21... Qc7 {[%clk 0:01:41.7]} 22. Rcd1
{[%clk 0:01:34]} 22... Rd7 {[%clk 0:01:38.9]} 23. f5 {[%clk 0:01:30.3]} 23...
exf5 {[%clk 0:01:37.5]} 24. Bxh6 {[%clk 0:01:28.9]} 24... Rff7 {[%clk
0:01:32.3]} 25. Nd5 {[%clk 0:01:28.6]} 25... Qd8 {[%clk 0:01:31.7]} 26. Bg5
{[%clk 0:01:28.2]} 26... Nf6 {[%clk 0:01:29.8]} 27. Nxf6+ {[%clk 0:01:27.5]} 1-0

[Event "Late-Titled-Tuesday-Blitz-October-24-2023"]
[Site "Chess.com"]
[Date "2023.10.24"]
[Round "1"]
[White "aranibos"]
[Black "dodoucb"]
[Result "0-1"]
[WhiteElo "2279"]
[BlackElo "2607"]
[TimeControl "180+1"]
[EndTime "14:04:17 PDT"]
[Termination "dodoucb won by resignation"]

1. d4 {[%clk 0:02:57.7]} 1... Nf6 {[%clk 0:02:59.7]} 2. c3 {[%clk 0:02:57]} 2...
e6 {[%clk 0:02:59.8]} 3. Bg5 {[%clk 0:02:57.5]} 3... h6 {[%clk 0:02:56.3]} 4.
Bh4 {[%clk 0:02:56.5]} 4... b6 {[%clk 0:02:55.5]} 5. Nd2 {[%clk 0:02:55.9]} 5...
Bb7 {[%clk 0:02:50.7]} 6. f3 {[%clk 0:02:56.1]} 6... d5 {[%clk 0:02:49.7]} 7.
Nh3 {[%clk 0:02:52.7]} 7... Be7 {[%clk 0:02:48]} 8. e3 {[%clk 0:02:48.2]} 8...
O-O {[%clk 0:02:45]} 9. Bxf6 {[%clk 0:02:47]} 9... Bxf6 {[%clk 0:02:43.2]} 10.
f4 {[%clk 0:02:44.6]} 10... c5 {[%clk 0:02:15.5]} 11. Bd3 {[%clk 0:02:42.9]}
11... a5 {[%clk 0:02:14.8]} 12. Qh5 {[%clk 0:02:40]} 12... Ba6 {[%clk 0:02:04]}
13. Bc2 {[%clk 0:02:38.7]} 13... b5 {[%clk 0:01:50]} 14. O-O-O {[%clk
0:02:26.3]} 14... b4 {[%clk 0:01:40.9]} 15. g4 {[%clk 0:02:26.6]} 15... bxc3
{[%clk 0:01:21.9]} 16. bxc3 {[%clk 0:02:27.5]} 16... cxd4 {[%clk 0:01:14.3]} 17.
exd4 {[%clk 0:02:24.8]} 17... Qc7 {[%clk 0:01:07.9]} 18. g5 {[%clk 0:02:21.3]}
18... Qxc3 {[%clk 0:00:53.9]} 19. gxf6 {[%clk 0:02:14.8]} 19... Bd3 {[%clk
0:00:49]} 0-1

[Event "Late-Titled-Tuesday-Blitz-October-24-2023"]
[Site "Chess.com"]
[Date "2023.10.24"]
[Round "1"]
[White "ValeriyGrinev"]
[Black "AleksandrAleksikov"]
[Result "1-0"]
[WhiteElo "2604"]
[BlackElo "2266"]
[TimeControl "180+1"]
[EndTime "14:04:26 PDT"]
[Termination "ValeriyGrinev won by resignation"]

1. d4 {[%clk 0:03:00.9]} 1... Nf6 {[%clk 0:02:59.9]} 2. c4 {[%clk 0:03:00.7]}
2... g6 {[%clk 0:03:00.1]} 3. Nc3 {[%clk 0:03:01]} 3... Bg7 {[%clk 0:02:59.9]}
4. e4 {[%clk 0:03:01.5]} 4... d6 {[%clk 0:02:59.4]} 5. Be2 {[%clk 0:03:02.1]}
5... O-O {[%clk 0:02:58.7]} 6. Nf3 {[%clk 0:03:02.7]} 6... e5 {[%clk 0:02:56.8]}
7. O-O {[%clk 0:03:03.4]} 7... Na6 {[%clk 0:02:56]} 8. Be3 {[%clk 0:03:03.7]}
8... Ng4 {[%clk 0:02:54.5]} 9. Bg5 {[%clk 0:03:04.4]} 9... f6 {[%clk 0:02:54.4]}
10. Bc1 {[%clk 0:03:03.8]} 10... Kh8 {[%clk 0:02:53.6]} 11. Rb1 {[%clk
0:03:02.9]} 11... c6 {[%clk 0:02:49.5]} 12. b4 {[%clk 0:03:00.9]} 12... Nc7
{[%clk 0:02:44.5]} 13. b5 {[%clk 0:02:54]} 13... c5 {[%clk 0:02:34.5]} 14. b6
{[%clk 0:02:47.6]} 14... axb6 {[%clk 0:02:16.1]} 15. d5 {[%clk 0:02:47.2]} 15...
Ra6 {[%clk 0:02:03.3]} 16. a4 {[%clk 0:02:40.8]} 16... Bd7 {[%clk 0:02:00]} 17.
Nb5 {[%clk 0:02:41]} 17... Nxb5 {[%clk 0:01:56.9]} 18. cxb5 {[%clk 0:02:41.3]}
18... Ra8 {[%clk 0:01:38.8]} 19. Nd2 {[%clk 0:02:40.9]} 19... Nh6 {[%clk
0:01:36.5]} 20. Nc4 {[%clk 0:02:40.8]} 20... Qc7 {[%clk 0:01:34.7]} 21. Rb3
{[%clk 0:02:28.7]} 21... Nf7 {[%clk 0:01:18]} 22. Rg3 {[%clk 0:02:24.4]} 22...
f5 {[%clk 0:01:05.3]} 23. exf5 {[%clk 0:02:24.2]} 23... gxf5 {[%clk 0:01:04.3]}
24. f4 {[%clk 0:02:24.6]} 24... e4 {[%clk 0:01:02.8]} 25. Rxg7 {[%clk 0:02:24]}
25... Kxg7 {[%clk 0:01:02.1]} 26. Bb2+ {[%clk 0:02:24.7]} 26... Kh6 {[%clk
0:00:48.2]} 27. Qb3 {[%clk 0:02:23.8]} 1-0

[Event "Late-Titled-Tuesday-Blitz-October-24-2023"]
[Site "Chess.com"]
[Date "2023.10.24"]
[Round "1"]
[White "PositionalPanther"]
[Black "randy296"]
[Result "1-0"]
[WhiteElo "2558"]
[BlackElo "2087"]
[TimeControl "180+1"]
[EndTime "14:04:52 PDT"]
[Termination "PositionalPanther won by resignation"]

1. Nf3 {[%clk 0:03:00.9]} 1... c5 {[%clk 0:02:58.9]} 2. g3 {[%clk 0:03:01.1]}
2... Nc6 {[%clk 0:02:59]} 3. Bg2 {[%clk 0:03:01.4]} 3... g6 {[%clk 0:02:59.1]}
4. c4 {[%clk 0:03:00]} 4... Bg7 {[%clk 0:02:58.8]} 5. Nc3 {[%clk 0:02:59.4]}
5... Nf6 {[%clk 0:02:58.8]} 6. O-O {[%clk 0:02:57.5]} 6... O-O {[%clk
0:02:58.8]} 7. d4 {[%clk 0:02:57.7]} 7... d6 {[%clk 0:02:58.7]} 8. dxc5 {[%clk
0:02:50.6]} 8... dxc5 {[%clk 0:02:58.2]} 9. Be3 {[%clk 0:02:50.6]} 9... Be6
{[%clk 0:02:46.7]} 10. Bxc5 {[%clk 0:02:32.9]} 10... Bxc4 {[%clk 0:02:46.5]} 11.
Qa4 {[%clk 0:02:22]} 11... Ba6 {[%clk 0:02:28.4]} 12. Rfd1 {[%clk 0:02:17]}
12... Qc7 {[%clk 0:02:26.1]} 13. Rac1 {[%clk 0:02:12.8]} 13... Rfd8 {[%clk
0:02:21.8]} 14. Rxd8+ {[%clk 0:02:00.2]} 14... Rxd8 {[%clk 0:02:20.7]} 15. b4
{[%clk 0:02:00.4]} 15... Bc4 {[%clk 0:02:09.9]} 16. Nb5 {[%clk 0:01:47.9]} 16...
Bxb5 {[%clk 0:02:08.9]} 17. Qxb5 {[%clk 0:01:48.8]} 17... a6 {[%clk 0:02:03.2]}
18. Qc4 {[%clk 0:01:40.5]} 18... Qd7 {[%clk 0:01:57.9]} 19. Bb6 {[%clk
0:01:33.7]} 19... Rc8 {[%clk 0:01:57.4]} 20. Ne5 {[%clk 0:01:32.7]} 20... Qd6
{[%clk 0:01:49.3]} 21. Nxf7 {[%clk 0:01:19.1]} 21... Ne5 {[%clk 0:01:07.6]} 22.
Nh6+ {[%clk 0:01:13.2]} 22... Kh8 {[%clk 0:01:06.3]} 23. Qxc8+ {[%clk 0:01:08]}
1-0

[Event "Late-Titled-Tuesday-Blitz-October-24-2023"]
[Site "Chess.com"]
[Date "2023.10.24"]
[Round "1"]
[White "HansOnTwitch"]
[Black "Ruchess27"]
[Result "1-0"]
[WhiteElo "3032"]
[BlackElo "2514"]
[TimeControl "180+1"]
[EndTime "14:05:03 PDT"]
[Termination "HansOnTwitch won by resignation"]

1. e4 {[%clk 0:03:00.9]} 1... e5 {[%clk 0:02:59]} 2. Nf3 {[%clk 0:03:00.3]} 2...
Nc6 {[%clk 0:02:59.5]} 3. Bb5 {[%clk 0:03:00.9]} 3... a6 {[%clk 0:02:59.7]} 4.
Ba4 {[%clk 0:03:01.2]} 4... Nf6 {[%clk 0:03:00.3]} 5. O-O {[%clk 0:03:01.6]}
5... Be7 {[%clk 0:03:00]} 6. Re1 {[%clk 0:03:01.6]} 6... b5 {[%clk 0:03:00.4]}
7. Bb3 {[%clk 0:03:02.1]} 7... O-O {[%clk 0:02:58.7]} 8. a4 {[%clk 0:03:02.4]}
8... Bb7 {[%clk 0:02:51.1]} 9. d3 {[%clk 0:03:02.1]} 9... d6 {[%clk 0:02:51.1]}
10. Nc3 {[%clk 0:03:01.8]} 10... b4 {[%clk 0:02:48.1]} 11. Ne2 {[%clk
0:03:02.2]} 11... Re8 {[%clk 0:02:21.9]} 12. Ng3 {[%clk 0:02:57.6]} 12... h6
{[%clk 0:02:19.7]} 13. Nf5 {[%clk 0:02:49]} 13... Bf8 {[%clk 0:02:18.8]} 14.
N3h4 {[%clk 0:02:44]} 14... Nd4 {[%clk 0:01:51]} 15. Nxd4 {[%clk 0:02:43.2]}
15... exd4 {[%clk 0:01:50.1]} 16. Nf5 {[%clk 0:02:43.1]} 16... c5 {[%clk
0:01:36.7]} 17. Qf3 {[%clk 0:02:40.7]} 17... Bc8 {[%clk 0:01:28.9]} 18. Bd2
{[%clk 0:02:34.9]} 18... Bxf5 {[%clk 0:01:23.8]} 19. Qxf5 {[%clk 0:02:34.8]}
19... Qd7 {[%clk 0:01:21.3]} 20. Qxd7 {[%clk 0:02:31.4]} 20... Nxd7 {[%clk
0:01:20.2]} 21. a5 {[%clk 0:02:32.1]} 21... g5 {[%clk 0:01:03.1]} 22. f4 {[%clk
0:02:31.8]} 22... g4 {[%clk 0:00:37.8]} 23. g3 {[%clk 0:02:26.1]} 23... h5
{[%clk 0:00:36.1]} 24. Kg2 {[%clk 0:02:26.5]} 24... Bh6 {[%clk 0:00:34.6]} 25.
Rh1 {[%clk 0:02:24.2]} 25... Kg7 {[%clk 0:00:30]} 26. h3 {[%clk 0:02:19.1]}
26... Nf6 {[%clk 0:00:21.7]} 27. hxg4 {[%clk 0:02:08.6]} 27... hxg4 {[%clk
0:00:18.5]} 28. Rh4 {[%clk 0:02:09.1]} 28... d5 {[%clk 0:00:15.2]} 29. e5 {[%clk
0:02:09]} 1-0

[Event "Late-Titled-Tuesday-Blitz-October-24-2023"]
[Site "Chess.com"]
[Date "2023.10.24"]
[Round "1"]
[White "YellowJacek"]
[Black "GP9isback23"]
[Result "0-1"]
[WhiteElo "2296"]
[BlackElo "2615"]
[TimeControl "180+1"]
[EndTime "14:05:17 PDT"]
[Termination "GP9isback23 won by resignation"]

1. c4 {[%clk 0:02:55.1]} 1... e6 {[%clk 0:02:59.8]} 2. g3 {[%clk 0:02:53.3]}
2... d5 {[%clk 0:02:59.5]} 3. Bg2 {[%clk 0:02:53.9]} 3... Nf6 {[%clk 0:02:59.6]}
4. Nf3 {[%clk 0:02:54.1]} 4... Be7 {[%clk 0:02:59.6]} 5. b3 {[%clk 0:02:54.1]}
5... O-O {[%clk 0:02:59.8]} 6. Bb2 {[%clk 0:02:54.3]} 6... a5 {[%clk 0:03:00.4]}
7. O-O {[%clk 0:02:53.7]} 7... a4 {[%clk 0:03:00.9]} 8. d3 {[%clk 0:02:33.6]}
8... c6 {[%clk 0:02:58]} 9. Nbd2 {[%clk 0:02:06.2]} 9... b5 {[%clk 0:02:47.9]}
10. cxb5 {[%clk 0:02:02.6]} 10... cxb5 {[%clk 0:02:46.7]} 11. bxa4 {[%clk
0:01:54.2]} 11... Rxa4 {[%clk 0:02:44.8]} 12. Qc2 {[%clk 0:01:43.2]} 12... Bd7
{[%clk 0:02:40.3]} 13. Rfc1 {[%clk 0:01:42.7]} 13... Qa5 {[%clk 0:02:38.9]} 14.
Nb3 {[%clk 0:01:40.3]} 14... Qa8 {[%clk 0:02:37.3]} 15. Be5 {[%clk 0:01:24.4]}
15... Na6 {[%clk 0:02:26.8]} 16. Qd2 {[%clk 0:01:07.9]} 16... Rd8 {[%clk
0:02:15.6]} 17. Nfd4 {[%clk 0:00:53.6]} 17... Nb4 {[%clk 0:02:12.2]} 18. Nc5
{[%clk 0:00:44.5]} 18... Bxc5 {[%clk 0:01:57.7]} 19. Rxc5 {[%clk 0:00:45.4]}
19... Na6 {[%clk 0:01:31.3]} 20. Rc2 {[%clk 0:00:41]} 20... Ne8 {[%clk
0:01:28.8]} 21. Rb2 {[%clk 0:00:37.7]} 21... f6 {[%clk 0:01:24.7]} 0-1